[Event "Titled Tuesday Blitz May 2 Early 2023"]
[White "Girish, A. Koushik"]
[Black "Womacka, Mathias"]
[WhiteFideId "5038448"]
[BlackFideId "4611390"]
[WhiteElo "2398"]
[BlackElo "2377"]
[Result "1-0"]
[Round "09"]
[TimeControl "180+2"]
[Date "2023.05.02"]
[WhiteClock "0:00:42"]
[BlackClock "0:00:06"]

1. d4 {[%clk 0:03:00]}  Nf6 {[%clk 0:02:58]} 2. c4 {[%clk 0:03:01]}  e6 {[%clk 0:02:59]} 3. Nf3 {[%clk 0:03:00]}  Bb4+ {[%clk 0:02:59]} 4. Nbd2 {[%clk 0:02:55]}  O-O {[%clk 0:02:56]} 5. a3 {[%clk 0:02:52]}  Be7 {[%clk 0:02:57]} 6. e4 {[%clk 0:02:48]}  d5 {[%clk 0:02:57]} 7. Bd3 {[%clk 0:02:42]}  dxe4 {[%clk 0:02:50]} 8. Nxe4 {[%clk 0:02:43]}  Nxe4 {[%clk 0:02:29]} 9. Bxe4 {[%clk 0:02:44]}  c5 {[%clk 0:02:29]} 10. O-O {[%clk 0:02:18]}  Nd7 {[%clk 0:02:11]} 11. Be3 {[%clk 0:02:14]}  Nf6 {[%clk 0:02:08]} 12. Bc2 {[%clk 0:02:12]}  cxd4 {[%clk 0:02:02]} 13. Bxd4 {[%clk 0:02:13]}  b6 {[%clk 0:02:00]} 14. Qe2 {[%clk 0:02:08]}  Bb7 {[%clk 0:01:58]} 15. Rad1 {[%clk 0:02:06]}  Qc7 {[%clk 0:01:57]} 16. b3 {[%clk 0:02:06]}  Rad8 {[%clk 0:01:53]} 17. a4 {[%clk 0:02:05]}  Bc5 {[%clk 0:01:40]} 18. Bxf6 {[%clk 0:01:49]}  gxf6 {[%clk 0:01:41]} 19. Be4 {[%clk 0:01:50]}  f5 {[%clk 0:01:18]} 20. Bxb7 {[%clk 0:01:45]}  Qxb7 {[%clk 0:01:19]} 21. Ne5 {[%clk 0:01:28]}  Rxd1 {[%clk 0:00:59]} 22. Rxd1 {[%clk 0:01:27]}  Qe4 {[%clk 0:00:58]} 23. Qxe4 {[%clk 0:01:16]}  fxe4 {[%clk 0:00:59]} 24. Nd7 {[%clk 0:01:14]}  e3 {[%clk 0:00:45]} 25. Nxf8 {[%clk 0:01:07]}  exf2+ {[%clk 0:00:44]} 26. Kf1 {[%clk 0:01:06]}  Kxf8 {[%clk 0:00:45]} 27. b4 {[%clk 0:01:02]}  Bxb4 {[%clk 0:00:44]} 28. Kxf2 {[%clk 0:01:02]}  Ke7 {[%clk 0:00:42]} 29. Kf3 {[%clk 0:01:03]}  f5 {[%clk 0:00:40]} 30. Rd4 {[%clk 0:01:02]}  h6 {[%clk 0:00:32]} 31. Ke2 {[%clk 0:01:00]}  Kf6 {[%clk 0:00:30]} 32. Rd7 {[%clk 0:00:57]}  a5 {[%clk 0:00:29]} 33. g3 {[%clk 0:00:56]}  Bc5 {[%clk 0:00:28]} 34. h3 {[%clk 0:00:56]}  h5 {[%clk 0:00:26]} 35. Kf3 {[%clk 0:00:55]}  Kg5 {[%clk 0:00:18]} 36. Rg7+ {[%clk 0:00:51]}  Kf6 {[%clk 0:00:17]} 37. Rh7 {[%clk 0:00:50]}  Kg6 {[%clk 0:00:17]} 38. Rh8 {[%clk 0:00:48]}  Kg5 {[%clk 0:00:17]} 39. Rg8+ {[%clk 0:00:46]}  Kf6 {[%clk 0:00:17]} 40. h4 {[%clk 0:00:46]}  e5 {[%clk 0:00:10]} 41. Rg5 {[%clk 0:00:46]}  e4+ {[%clk 0:00:11]} 42. Ke2 {[%clk 0:00:45]}  Ke5 {[%clk 0:00:10]} 43. Rxh5 {[%clk 0:00:45]}  Kd4 {[%clk 0:00:06]} 44. Rxf5 {[%clk 0:00:44]}  Kxc4 {[%clk 0:00:06]} 45. h5 {[%clk 0:00:42]}  Kb4 {[%clk 0:00:07]} 46. h6 {[%clk 0:00:42]}  Bd4 {[%clk 0:00:06]} 47. Rf4 {[%clk 0:00:42]} 1-0


[Site "https://www.chess.com"]

[Event "Titled Tuesday Blitz May 2 Early 2023"]
[White "Arkell, Keith C"]
[Black "Bayasgalan, Khishigbaatar"]
[WhiteFideId "400270"]
[BlackFideId "4904311"]
[WhiteElo "2319"]
[BlackElo "2057"]
[Result "1/2-1/2"]
[Round "09"]
[TimeControl "180+2"]
[Date "2023.05.02"]
[WhiteClock "0:00:32"]
[BlackClock "0:00:14"]

1. d4 {[%clk 0:03:00]}  Nf6 {[%clk 0:02:42]} 2. Nf3 {[%clk 0:03:01]}  e6 {[%clk 0:02:41]} 3. c4 {[%clk 0:03:01]}  d5 {[%clk 0:02:40]} 4. cxd5 {[%clk 0:03:01]}  exd5 {[%clk 0:02:39]} 5. Nc3 {[%clk 0:03:01]}  c6 {[%clk 0:02:39]} 6. Qc2 {[%clk 0:03:02]}  h6 {[%clk 0:02:38]} 7. Bf4 {[%clk 0:02:59]}  Bd6 {[%clk 0:02:38]} 8. Bxd6 {[%clk 0:02:59]}  Qxd6 {[%clk 0:02:38]} 9. e3 {[%clk 0:02:59]}  O-O {[%clk 0:02:39]} 10. Be2 {[%clk 0:02:59]}  Bg4 {[%clk 0:02:37]} 11. Ne5 {[%clk 0:03:00]}  Bxe2 {[%clk 0:02:36]} 12. Qxe2 {[%clk 0:02:59]}  Nbd7 {[%clk 0:02:36]} 13. Nxd7 {[%clk 0:02:59]}  Nxd7 {[%clk 0:02:31]} 14. O-O {[%clk 0:02:59]}  f5 {[%clk 0:02:32]} 15. g3 {[%clk 0:02:57]}  Nf6 {[%clk 0:02:31]} 16. Qf3 {[%clk 0:02:53]}  Ne4 {[%clk 0:02:24]} 17. Qf4 {[%clk 0:02:53]}  Qxf4 {[%clk 0:02:12]} 18. exf4 {[%clk 0:02:46]}  Nxc3 {[%clk 0:02:11]} 19. bxc3 {[%clk 0:02:45]}  Rfe8 {[%clk 0:02:10]} 20. Rfe1 {[%clk 0:02:45]}  Re4 {[%clk 0:02:00]} 21. f3 {[%clk 0:02:45]}  Rxe1+ {[%clk 0:01:59]} 22. Rxe1 {[%clk 0:02:45]}  Kf7 {[%clk 0:02:00]} 23. Kf2 {[%clk 0:02:37]}  b5 {[%clk 0:01:58]} 24. a4 {[%clk 0:02:37]}  bxa4 {[%clk 0:01:31]} 25. Ra1 {[%clk 0:02:36]}  a5 {[%clk 0:01:32]} 26. Rxa4 {[%clk 0:02:36]}  Ke6 {[%clk 0:01:32]} 27. g4 {[%clk 0:02:30]}  g6 {[%clk 0:01:26]} 28. Ke3 {[%clk 0:02:31]}  Kd6 {[%clk 0:01:24]} 29. Kd3 {[%clk 0:02:31]}  c5 {[%clk 0:01:13]} 30. Kc2 {[%clk 0:02:22]}  c4 {[%clk 0:01:09]} 31. h4 {[%clk 0:02:14]}  h5 {[%clk 0:01:08]} 32. gxf5 {[%clk 0:02:03]}  gxf5 {[%clk 0:01:08]} 33. Ra1 {[%clk 0:02:03]}  a4 {[%clk 0:01:07]} 34. Rg1 {[%clk 0:02:02]}  a3 {[%clk 0:01:02]} 35. Rg6+ {[%clk 0:02:00]}  Ke7 {[%clk 0:01:01]} 36. Kb1 {[%clk 0:01:57]}  Rb8+ {[%clk 0:00:58]} 37. Ka2 {[%clk 0:01:56]}  Rb2+ {[%clk 0:00:55]} 38. Kxa3 {[%clk 0:01:56]}  Rb3+ {[%clk 0:00:53]} 39. Ka4 {[%clk 0:01:57]}  Rxc3 {[%clk 0:00:54]} 40. Kb4 {[%clk 0:01:55]}  Rxf3 {[%clk 0:00:53]} 41. Kc5 {[%clk 0:01:56]}  Rxf4 {[%clk 0:00:53]} 42. Kxd5 {[%clk 0:01:56]}  Rxh4 {[%clk 0:00:50]} 43. Rc6 {[%clk 0:01:48]}  Re4 {[%clk 0:00:48]} 44. Rxc4 {[%clk 0:01:47]}  Kf6 {[%clk 0:00:48]} 45. Rc8 {[%clk 0:01:39]}  h4 {[%clk 0:00:45]} 46. Rh8 {[%clk 0:01:37]}  Kg5 {[%clk 0:00:45]} 47. Kc5 {[%clk 0:01:35]}  Kg4 {[%clk 0:00:44]} 48. d5 {[%clk 0:01:35]}  Re1 {[%clk 0:00:43]} 49. d6 {[%clk 0:01:35]}  Rd1 {[%clk 0:00:43]} 50. Kc6 {[%clk 0:01:35]}  h3 {[%clk 0:00:43]} 51. d7 {[%clk 0:01:35]}  f4 {[%clk 0:00:43]} 52. d8=Q {[%clk 0:01:29]}  Rxd8 {[%clk 0:00:42]} 53. Rxd8 {[%clk 0:01:29]}  h2 {[%clk 0:00:42]} 54. Rg8+ {[%clk 0:01:08]}  Kf3 {[%clk 0:00:39]} 55. Rh8 {[%clk 0:01:08]}  Kg2 {[%clk 0:00:39]} 56. Rg8+ {[%clk 0:01:08]}  Kf2 {[%clk 0:00:39]} 57. Rh8 {[%clk 0:01:08]}  Kg1 {[%clk 0:00:37]} 58. Rg8+ {[%clk 0:01:08]}  Kf1 {[%clk 0:00:37]} 59. Rh8 {[%clk 0:01:07]}  Kg1 {[%clk 0:00:32]} 60. Rg8+ {[%clk 0:01:07]}  Kh1 {[%clk 0:00:33]} 61. Rf8 {[%clk 0:00:47]}  f3 {[%clk 0:00:32]} 62. Kd5 {[%clk 0:00:42]}  Kg2 {[%clk 0:00:27]} 63. Rg8+ {[%clk 0:00:42]}  Kf1 {[%clk 0:00:27]} 64. Rh8 {[%clk 0:00:41]}  Kg1 {[%clk 0:00:26]} 65. Rg8+ {[%clk 0:00:41]}  Kh1 {[%clk 0:00:22]} 66. Rf8 {[%clk 0:00:37]}  Kg2 {[%clk 0:00:22]} 67. Rg8+ {[%clk 0:00:37]}  Kh3 {[%clk 0:00:22]} 68. Rh8+ {[%clk 0:00:37]}  Kg3 {[%clk 0:00:22]} 69. Rg8+ {[%clk 0:00:37]}  Kf4 {[%clk 0:00:21]} 70. Rf8+ {[%clk 0:00:35]}  Ke3 {[%clk 0:00:21]} 71. Re8+ {[%clk 0:00:32]}  Kd3 {[%clk 0:00:17]} 72. Rh8 {[%clk 0:00:32]}  f2 {[%clk 0:00:15]} 73. Rh3+ {[%clk 0:00:32]}  Ke2 {[%clk 0:00:14]} 74. Rxh2 {[%clk 0:00:32]}  Ke1 {[%clk 0:00:14]} 75. Rxf2 {[%clk 0:00:32]}  Kxf2 {[%clk 0:00:14]} 1/2-1/2


[Site "https://www.chess.com"]

[Event "Titled Tuesday Blitz May 2 Early 2023"]
[White "Lenaerts, Lennert"]
[Black "Todorovic, Bojan"]
[WhiteFideId "211435"]
[BlackFideId "917087"]
[WhiteElo "2334"]
[BlackElo "2266"]
[Result "1-0"]
[Round "09"]
[TimeControl "180+2"]
[Date "2023.05.02"]
[WhiteClock "0:00:10"]
[BlackClock "0:00:06"]

1. d4 {[%clk 0:03:00]}  Nf6 {[%clk 0:02:59]} 2. c4 {[%clk 0:03:01]}  g6 {[%clk 0:02:58]} 3. Nc3 {[%clk 0:03:01]}  Bg7 {[%clk 0:02:55]} 4. e4 {[%clk 0:03:01]}  d6 {[%clk 0:02:55]} 5. f3 {[%clk 0:03:02]}  O-O {[%clk 0:02:54]} 6. Be3 {[%clk 0:03:02]}  e5 {[%clk 0:02:53]} 7. Nge2 {[%clk 0:03:02]}  c6 {[%clk 0:02:52]} 8. Qd2 {[%clk 0:03:02]}  Nbd7 {[%clk 0:02:51]} 9. d5 {[%clk 0:03:03]}  cxd5 {[%clk 0:02:48]} 10. cxd5 {[%clk 0:03:04]}  a6 {[%clk 0:02:48]} 11. g4 {[%clk 0:03:04]}  b5 {[%clk 0:02:39]} 12. Ng3 {[%clk 0:03:04]}  b4 {[%clk 0:02:32]} 13. Nd1 {[%clk 0:03:03]}  a5 {[%clk 0:02:30]} 14. h4 {[%clk 0:03:01]}  Nc5 {[%clk 0:02:24]} 15. h5 {[%clk 0:02:52]}  b3 {[%clk 0:02:07]} 16. Bh6 {[%clk 0:02:17]}  Ra7 {[%clk 0:01:59]} 17. Bxg7 {[%clk 0:02:13]}  Kxg7 {[%clk 0:01:58]} 18. hxg6 {[%clk 0:02:13]}  fxg6 {[%clk 0:01:57]} 19. Qh6+ {[%clk 0:02:13]}  Kg8 {[%clk 0:01:57]} 20. g5 {[%clk 0:01:55]}  Ne8 {[%clk 0:01:55]} 21. Be2 {[%clk 0:01:52]}  Qb6 {[%clk 0:01:53]} 22. a3 {[%clk 0:01:50]}  Na4 {[%clk 0:01:48]} 23. Rc1 {[%clk 0:01:42]}  Ba6 {[%clk 0:01:46]} 24. Rc6 {[%clk 0:01:33]}  Qd4 {[%clk 0:01:38]} 25. Rxa6 {[%clk 0:01:26]}  Rg7 {[%clk 0:01:35]} 26. Rxa5 {[%clk 0:00:46]}  Nxb2 {[%clk 0:01:35]} 27. Nxb2 {[%clk 0:00:46]}  Qc3+ {[%clk 0:01:33]} 28. Kf2 {[%clk 0:00:46]}  Qxa5 {[%clk 0:01:33]} 29. Nc4 {[%clk 0:00:45]}  Qc5+ {[%clk 0:01:32]} 30. Kg2 {[%clk 0:00:46]}  b2 {[%clk 0:01:29]} 31. Rb1 {[%clk 0:00:46]}  Rb7 {[%clk 0:01:25]} 32. Rxb2 {[%clk 0:00:42]}  Rxb2 {[%clk 0:01:25]} 33. Nxb2 {[%clk 0:00:43]}  Qxa3 {[%clk 0:01:20]} 34. Nc4 {[%clk 0:00:43]}  Qc3 {[%clk 0:01:16]} 35. Nf1 {[%clk 0:00:35]}  Nc7 {[%clk 0:01:14]} 36. Nfe3 {[%clk 0:00:29]}  Nb5 {[%clk 0:01:12]} 37. Ng4 {[%clk 0:00:27]}  Qc2 {[%clk 0:01:02]} 38. Kf1 {[%clk 0:00:14]}  Nd4 {[%clk 0:01:01]} 39. Qh2 {[%clk 0:00:11]}  Nxf3 {[%clk 0:00:52]} 40. Bxf3 {[%clk 0:00:10]}  Qxc4+ {[%clk 0:00:51]} 41. Kg2 {[%clk 0:00:10]}  Qc2+ {[%clk 0:00:50]} 42. Kg3 {[%clk 0:00:10]}  Qxh2+ {[%clk 0:00:49]} 43. Nxh2 {[%clk 0:00:11]}  Rf4 {[%clk 0:00:43]} 44. Ng4 {[%clk 0:00:10]}  Kf7 {[%clk 0:00:43]} 45. Bg2 {[%clk 0:00:08]}  Kg7 {[%clk 0:00:35]} 46. Bf3 {[%clk 0:00:08]}  Rf8 {[%clk 0:00:35]} 47. Nf6 {[%clk 0:00:08]}  h6 {[%clk 0:00:33]} 48. Nd7 {[%clk 0:00:08]}  Rd8 {[%clk 0:00:32]} 49. gxh6+ {[%clk 0:00:09]}  Kxh6 {[%clk 0:00:31]} 50. Nb6 {[%clk 0:00:10]}  Kg5 {[%clk 0:00:30]} 51. Nc4 {[%clk 0:00:10]}  Kf6 {[%clk 0:00:27]} 52. Bg4 {[%clk 0:00:10]}  Ke7 {[%clk 0:00:27]} 53. Kh4 {[%clk 0:00:09]}  Rf8 {[%clk 0:00:24]} 54. Kg5 {[%clk 0:00:07]}  Rf4 {[%clk 0:00:24]} 55. Nd2 {[%clk 0:00:07]}  Kf7 {[%clk 0:00:23]} 56. Bf3 {[%clk 0:00:08]}  Kg7 {[%clk 0:00:19]} 57. Bg4 {[%clk 0:00:08]}  Rf2 {[%clk 0:00:18]} 58. Nc4 {[%clk 0:00:08]}  Rf6 {[%clk 0:00:16]} 59. Be6 {[%clk 0:00:07]}  Rf1 {[%clk 0:00:12]} 60. Nxd6 {[%clk 0:00:08]}  Re1 {[%clk 0:00:11]} 61. Kg4 {[%clk 0:00:07]}  g5 {[%clk 0:00:10]} 62. Kxg5 {[%clk 0:00:06]}  Kf8 {[%clk 0:00:09]} 63. Kf6 {[%clk 0:00:06]}  Rf1+ {[%clk 0:00:08]} 64. Nf5 {[%clk 0:00:06]}  Ke8 {[%clk 0:00:07]} 65. Kxe5 {[%clk 0:00:07]}  Kd8 {[%clk 0:00:07]} 66. d6 {[%clk 0:00:08]}  Ke8 {[%clk 0:00:07]} 67. Nd4 {[%clk 0:00:08]}  Kd8 {[%clk 0:00:06]} 68. Nc6+ {[%clk 0:00:08]}  Ke8 {[%clk 0:00:06]} 69. d7+ {[%clk 0:00:09]}  Kf8 {[%clk 0:00:06]} 70. d8=Q+ {[%clk 0:00:10]} 1-0


[Site "https://www.chess.com"]

[Event "Titled Tuesday Blitz May 2 Early 2023"]
[White "Janaszak, Dawid"]
[Black "Mikhailovsky, Vladimir"]
[WhiteFideId "1119206"]
[BlackFideId "34105414"]
[WhiteElo "2220"]
[BlackElo "2275"]
[Result "0-1"]
[Round "09"]
[TimeControl "180+2"]
[Date "2023.05.02"]
[WhiteClock "0:00:33"]
[BlackClock "0:00:15"]

1. e4 {[%clk 0:02:58]}  e5 {[%clk 0:03:00]} 2. Nf3 {[%clk 0:02:53]}  d5 {[%clk 0:03:00]} 3. Nxe5 {[%clk 0:02:51]}  Bd6 {[%clk 0:03:01]} 4. d4 {[%clk 0:02:46]}  dxe4 {[%clk 0:03:01]} 5. Bc4 {[%clk 0:02:43]}  Bxe5 {[%clk 0:03:02]} 6. Qh5 {[%clk 0:02:43]}  Qe7 {[%clk 0:03:01]} 7. Qxe5 {[%clk 0:02:42]}  Qxe5 {[%clk 0:03:01]} 8. dxe5 {[%clk 0:02:43]}  Nc6 {[%clk 0:03:02]} 9. Bb5 {[%clk 0:02:38]}  Bd7 {[%clk 0:03:02]} 10. Bf4 {[%clk 0:02:35]}  O-O-O {[%clk 0:02:59]} 11. Bxc6 {[%clk 0:02:30]}  Bxc6 {[%clk 0:02:59]} 12. Nc3 {[%clk 0:02:30]}  Ne7 {[%clk 0:02:59]} 13. O-O {[%clk 0:02:28]}  Ng6 {[%clk 0:03:00]} 14. Bg3 {[%clk 0:02:28]}  Rhe8 {[%clk 0:03:00]} 15. Rfe1 {[%clk 0:02:21]}  Rd2 {[%clk 0:03:00]} 16. Re2 {[%clk 0:02:20]}  Rxe2 {[%clk 0:03:00]} 17. Nxe2 {[%clk 0:02:21]}  Nxe5 {[%clk 0:03:00]} 18. Nd4 {[%clk 0:02:19]}  Bd7 {[%clk 0:02:40]} 19. Re1 {[%clk 0:02:17]}  f5 {[%clk 0:02:40]} 20. f3 {[%clk 0:02:13]}  Nc6 {[%clk 0:02:38]} 21. Nb5 {[%clk 0:02:10]}  exf3 {[%clk 0:02:16]} 22. Rxe8+ {[%clk 0:02:09]}  Bxe8 {[%clk 0:02:17]} 23. Nxc7 {[%clk 0:02:07]}  Bf7 {[%clk 0:02:17]} 24. gxf3 {[%clk 0:02:06]}  Bxa2 {[%clk 0:01:47]} 25. Nb5 {[%clk 0:02:05]}  Kd7 {[%clk 0:01:46]} 26. c3 {[%clk 0:01:57]}  g5 {[%clk 0:00:55]} 27. Nd4 {[%clk 0:01:55]}  Nxd4 {[%clk 0:00:51]} 28. cxd4 {[%clk 0:01:54]}  f4 {[%clk 0:00:51]} 29. Be1 {[%clk 0:01:53]}  Ke6 {[%clk 0:00:50]} 30. Bb4 {[%clk 0:01:51]}  Bd5 {[%clk 0:00:41]} 31. Kf2 {[%clk 0:01:49]}  Kf5 {[%clk 0:00:42]} 32. Bc5 {[%clk 0:01:47]}  b6 {[%clk 0:00:38]} 33. Bd6 {[%clk 0:01:47]}  h5 {[%clk 0:00:37]} 34. Bb8 {[%clk 0:01:47]}  a6 {[%clk 0:00:38]} 35. Bc7 {[%clk 0:01:47]}  b5 {[%clk 0:00:38]} 36. b4 {[%clk 0:01:48]}  g4 {[%clk 0:00:38]} 37. fxg4+ {[%clk 0:01:44]}  hxg4 {[%clk 0:00:39]} 38. Bb8 {[%clk 0:01:41]}  Ke4 {[%clk 0:00:38]} 39. Bc7 {[%clk 0:01:38]}  Be6 {[%clk 0:00:31]} 40. Bb8 {[%clk 0:01:37]}  f3 {[%clk 0:00:27]} 41. Be5 {[%clk 0:01:33]}  Kd3 {[%clk 0:00:27]} 42. Bf6 {[%clk 0:01:22]}  Kc4 {[%clk 0:00:24]} 43. Be7 {[%clk 0:01:22]}  Kxd4 {[%clk 0:00:24]} 44. Bc5+ {[%clk 0:01:22]}  Kc4 {[%clk 0:00:24]} 45. Be7 {[%clk 0:01:23]}  Bc8 {[%clk 0:00:21]} 46. Kg3 {[%clk 0:01:08]}  Kb3 {[%clk 0:00:19]} 47. Bd6 {[%clk 0:01:06]}  Ka4 {[%clk 0:00:19]} 48. Kf2 {[%clk 0:00:52]}  a5 {[%clk 0:00:18]} 49. bxa5 {[%clk 0:00:52]}  Kxa5 {[%clk 0:00:19]} 50. Ke1 {[%clk 0:00:40]}  b4 {[%clk 0:00:19]} 51. Bg3 {[%clk 0:00:38]}  Kb5 {[%clk 0:00:20]} 52. Kd2 {[%clk 0:00:38]}  Kc4 {[%clk 0:00:20]} 53. Kc2 {[%clk 0:00:39]}  Bf5+ {[%clk 0:00:20]} 54. Kb2 {[%clk 0:00:39]}  b3 {[%clk 0:00:14]} 55. Bf2 {[%clk 0:00:35]}  Bc2 {[%clk 0:00:15]} 56. Bg3 {[%clk 0:00:35]}  Kd3 {[%clk 0:00:15]} 57. Bh4 {[%clk 0:00:35]}  Ke2 {[%clk 0:00:16]} 58. Bg3 {[%clk 0:00:33]}  f2 {[%clk 0:00:15]} 0-1


[Site "https://www.chess.com"]

[Event "Titled Tuesday Blitz May 2 Early 2023"]
[White "Ilamparthi A R"]
[Black "Bartel, Michal"]
[WhiteFideId "45015775"]
[BlackFideId "1119257"]
[WhiteElo "2348"]
[BlackElo "2282"]
[Result "0-1"]
[Round "09"]
[TimeControl "180+2"]
[Date "2023.05.02"]
[WhiteClock "0:00:17"]
[BlackClock "0:00:22"]

1. e4 {[%clk 0:03:00]}  e5 {[%clk 0:02:57]} 2. f4 {[%clk 0:02:58]}  exf4 {[%clk 0:02:57]} 3. Bc4 {[%clk 0:02:57]}  Qh4+ {[%clk 0:02:54]} 4. Kf1 {[%clk 0:02:57]}  d6 {[%clk 0:02:54]} 5. Nf3 {[%clk 0:02:56]}  Qh6 {[%clk 0:02:54]} 6. d4 {[%clk 0:02:56]}  Be6 {[%clk 0:02:53]} 7. Qd3 {[%clk 0:02:51]}  Nd7 {[%clk 0:02:50]} 8. Nc3 {[%clk 0:02:48]}  a6 {[%clk 0:02:32]} 9. Ne2 {[%clk 0:02:29]}  g5 {[%clk 0:02:22]} 10. h4 {[%clk 0:02:27]}  Be7 {[%clk 0:01:58]} 11. Kg1 {[%clk 0:02:19]}  gxh4 {[%clk 0:01:41]} 12. Nxf4 {[%clk 0:02:10]}  Qf6 {[%clk 0:01:38]} 13. Nd5 {[%clk 0:01:19]}  Bxd5 {[%clk 0:01:35]} 14. Bxd5 {[%clk 0:01:20]}  O-O-O {[%clk 0:01:31]} 15. Rxh4 {[%clk 0:00:58]}  Qg7 {[%clk 0:01:14]} 16. Rh1 {[%clk 0:00:42]}  Ngf6 {[%clk 0:01:11]} 17. Bb3 {[%clk 0:00:40]}  Rhg8 {[%clk 0:01:07]} 18. Qe2 {[%clk 0:00:34]}  Nxe4 {[%clk 0:01:04]} 19. Rh2 {[%clk 0:00:28]}  Ng5 {[%clk 0:00:54]} 20. Bxg5 {[%clk 0:00:24]}  Bxg5 {[%clk 0:00:55]} 21. Rf1 {[%clk 0:00:23]}  Rde8 {[%clk 0:00:54]} 22. Qc4 {[%clk 0:00:22]}  Bf4 {[%clk 0:00:52]} 23. Rf2 {[%clk 0:00:19]}  Bxh2+ {[%clk 0:00:44]} 24. Nxh2 {[%clk 0:00:20]}  Re1+ {[%clk 0:00:43]} 25. Nf1 {[%clk 0:00:20]}  Rf8 {[%clk 0:00:34]} 26. Qc3 {[%clk 0:00:19]}  Rd1 {[%clk 0:00:27]} 27. Bd5 {[%clk 0:00:18]}  Qxd4 {[%clk 0:00:22]} 28. Qxd4 {[%clk 0:00:17]}  Rxd4 {[%clk 0:00:23]} 29. Bxf7 {[%clk 0:00:18]}  Kd8 {[%clk 0:00:22]} 30. Rf3 {[%clk 0:00:17]}  Ne5 {[%clk 0:00:22]} 0-1


[Site "https://www.chess.com"]

[Event "Titled Tuesday Blitz May 2 Early 2023"]
[White "Koellner, Ruben Gideon"]
[Black "Jaskolka, Tomasz"]
[WhiteFideId "12993093"]
[BlackFideId "1170791"]
[WhiteElo "2314"]
[BlackElo "2155"]
[Result "1/2-1/2"]
[Round "09"]
[TimeControl "180+2"]
[Date "2023.05.02"]
[WhiteClock "0:00:07"]
[BlackClock "0:00:05"]

1. d4 {[%clk 0:03:00]}  d5 {[%clk 0:02:59]} 2. Nf3 {[%clk 0:03:00]}  Nc6 {[%clk 0:02:57]} 3. e3 {[%clk 0:03:00]}  f6 {[%clk 0:02:56]} 4. c4 {[%clk 0:02:59]}  e6 {[%clk 0:02:52]} 5. Nc3 {[%clk 0:02:58]}  Bb4 {[%clk 0:02:51]} 6. Qb3 {[%clk 0:02:56]}  Nge7 {[%clk 0:02:46]} 7. cxd5 {[%clk 0:02:51]}  Nxd5 {[%clk 0:02:45]} 8. Bb5 {[%clk 0:02:47]}  Bd7 {[%clk 0:02:42]} 9. O-O {[%clk 0:02:46]}  Bxc3 {[%clk 0:02:42]} 10. bxc3 {[%clk 0:02:47]}  O-O {[%clk 0:02:40]} 11. c4 {[%clk 0:02:43]}  Nde7 {[%clk 0:02:35]} 12. Bd2 {[%clk 0:02:39]}  a6 {[%clk 0:02:32]} 13. Ba4 {[%clk 0:02:35]}  Qe8 {[%clk 0:02:28]} 14. Qa3 {[%clk 0:02:31]}  Qf7 {[%clk 0:02:12]} 15. Rab1 {[%clk 0:02:20]}  Rab8 {[%clk 0:02:06]} 16. Rfd1 {[%clk 0:02:16]}  Kh8 {[%clk 0:02:05]} 17. Be1 {[%clk 0:02:16]}  Ng6 {[%clk 0:01:55]} 18. Rbc1 {[%clk 0:02:01]}  Rfd8 {[%clk 0:01:41]} 19. Bc3 {[%clk 0:01:46]}  e5 {[%clk 0:01:37]} 20. d5 {[%clk 0:01:45]}  Nce7 {[%clk 0:01:35]} 21. Ba5 {[%clk 0:01:41]}  Bxa4 {[%clk 0:01:29]} 22. Qxa4 {[%clk 0:01:42]}  Nf5 {[%clk 0:01:23]} 23. e4 {[%clk 0:01:22]}  Nd6 {[%clk 0:01:21]} 24. Qc2 {[%clk 0:01:22]}  Nf4 {[%clk 0:01:11]} 25. g3 {[%clk 0:01:17]}  Qh5 {[%clk 0:01:01]} 26. Nh4 {[%clk 0:00:20]}  b6 {[%clk 0:00:50]} 27. Bb4 {[%clk 0:00:14]}  Ne2+ {[%clk 0:00:46]} 28. Kg2 {[%clk 0:00:14]}  Nxc1 {[%clk 0:00:47]} 29. Rxc1 {[%clk 0:00:14]}  a5 {[%clk 0:00:29]} 30. Bxd6 {[%clk 0:00:13]}  cxd6 {[%clk 0:00:30]} 31. Nf5 {[%clk 0:00:13]}  Qf7 {[%clk 0:00:28]} 32. Rb1 {[%clk 0:00:11]}  Qc7 {[%clk 0:00:28]} 33. Qb3 {[%clk 0:00:10]}  g6 {[%clk 0:00:27]} 34. Ne3 {[%clk 0:00:09]}  Rdc8 {[%clk 0:00:25]} 35. h4 {[%clk 0:00:09]}  Kg7 {[%clk 0:00:23]} 36. Qd3 {[%clk 0:00:08]}  Qd7 {[%clk 0:00:17]} 37. Rb5 {[%clk 0:00:08]}  Rc5 {[%clk 0:00:17]} 38. Rb1 {[%clk 0:00:07]}  Qc7 {[%clk 0:00:15]} 39. a4 {[%clk 0:00:06]}  Rc8 {[%clk 0:00:16]} 40. Qb3 {[%clk 0:00:05]}  Qd7 {[%clk 0:00:10]} 41. Qa2 {[%clk 0:00:04]}  Rb8 {[%clk 0:00:09]} 42. f3 {[%clk 0:00:02]}  f5 {[%clk 0:00:10]} 43. Qc2 {[%clk 0:00:01]}  f4 {[%clk 0:00:10]} 44. gxf4 {[%clk 0:00:01]}  exf4 {[%clk 0:00:11]} 45. Qb2+ {[%clk 0:00:01]}  Kg8 {[%clk 0:00:05]} 46. Ng4 {[%clk 0:00:02]}  Qg7 {[%clk 0:00:05]} 47. Nf6+ {[%clk 0:00:01]}  Kf7 {[%clk 0:00:05]} 48. Ng4 {[%clk 0:00:02]}  Qxb2+ {[%clk 0:00:05]} 49. Rxb2 {[%clk 0:00:03]}  Rxc4 {[%clk 0:00:06]} 50. Nh6+ {[%clk 0:00:02]}  Kg7 {[%clk 0:00:06]} 51. Ng4 {[%clk 0:00:03]}  Rb4 {[%clk 0:00:06]} 52. Rc2 {[%clk 0:00:03]}  Rxa4 {[%clk 0:00:07]} 53. Rc7+ {[%clk 0:00:04]}  Kf8 {[%clk 0:00:07]} 54. Nf6 {[%clk 0:00:04]}  Ra2+ {[%clk 0:00:05]} 55. Kh3 {[%clk 0:00:04]}  h6 {[%clk 0:00:05]} 56. Rd7 {[%clk 0:00:04]}  Rb2 {[%clk 0:00:02]} 57. Nh7+ {[%clk 0:00:04]}  Ke8 {[%clk 0:00:02]} 58. Nf6+ {[%clk 0:00:05]}  Kf8 {[%clk 0:00:03]} 59. h5 {[%clk 0:00:05]}  gxh5 {[%clk 0:00:03]} 60. e5 {[%clk 0:00:04]}  dxe5 {[%clk 0:00:03]} 61. Nh7+ {[%clk 0:00:05]}  Ke8 {[%clk 0:00:03]} 62. Nf6+ {[%clk 0:00:06]}  Kf8 {[%clk 0:00:04]} 63. Nh7+ {[%clk 0:00:06]}  Kg8 {[%clk 0:00:04]} 64. Nf6+ {[%clk 0:00:07]}  Kf8 {[%clk 0:00:05]} 1/2-1/2


[Site "https://www.chess.com"]